Workbook

Sheet 발주계획
B1: 울산광역시 공고 제2026 - 714호
B2: 2026년도 2/4분기 발주계획(공사·용역·물품) 공고
B3: 「지방자치단체를 당사자로 하는 계약에 관한 법률」 제43조 및 같은 법 시행령 제124조에 따라 우리시 2025년도 1분기 발주계획을 다음과 같이 공고합니다. 2026. 4. 1. 울산광역시장
C4: 각 시트별 집계현황
C5: 총 | D5: =SUM(D6:D8) -> 160건 | E5: =E6+E7+E8 -> 71,409백만원
C6: 공사 | D6: =COUNTA(공사!A2:A101) -> 45건 | E6: =INT(SUM(공사!F:F)/1000000) -> 56,336백만원
C7: 용역 | D7: =COUNTA(용역!A2:A99) -> 79건 | E7: =INT(SUM(용역!G:G)/1000000) -> 13,448백만원
C8: 물품 | D8: =COUNTA(물품!A2:A117) -> 36건 | E8: =INT(SUM(물품!H:H)/1000000) -> 1,625백만원
B10: ※ 설계결과, 현지여건, 우리시 사정등에 의하여 사업의 분리 또는 사업비의 증감, 발주시기 등이 변경될 수 있습니다.

Sheet 공사
A1: 발주년도 | B1: 발주월 | C1: 공사명 | D1: 공종 | E1: 발주물량 또는 규모 | F1: 발주도급금액 (단위:원) | G1: 발주관급자재비 | H1: 발주기타금액 | I1: 발주합계금액 | J1: 금차도급금액 | K1: 부서명 | L1: 담당자 | M1: 연락처 | N1: 비고
A2: 2026 | B2: 4 | C2: 유량계실 자동배수펌프 교체공사 | D2: 전문 | E2: 고장 자동배수펌프 100개소 교체 | F2: 55,279,000 | G2: 34,240,000 | I2: 89,519,000 | K2: 시설관리부 | L2: 김평주 | M2: 052-229-6689
A3: 2026 | B3: 4 | C3: 언양읍 일원 노후상수도관 정비공사 | D3: 전문 | E3: 배수관(D300mm, L=1.5km) 부설 | F3: 2,180,000,000 | G3: 600,000,000 | H3: 220,000,000 | I3: =F3+G3+H3 -> 3,000,000,000 | K3: 시설관리부 | L3: 서성용 | M3: 052-229-6233 | N3: 발주기타금액: 폐기물, GIS DB 등
A4: 2026 | B4: 4 | C4: 옥동 문수로 일원 노후상수도관 정비공사 | D4: 토목 | E4: 상수관로 교체 L=745m | F4: 318,430,000 | G4: 194,170,000 | I4: =F4+G4 -> 512,600,000 | J4: =F4 -> 318,430,000 | K4: 남부사업소 | L4: 임연하 | M4: 052-229-5701
A5: 2026 | B5: 4 | C5: 울산하이테크밸리(3공구) 일반산단 진입도로 확장공사 | D5: 토목 | E5: 도로확장 L=587m | F5: 2,000,000,000 | G5: 630,000,000 | I5: =F5+G5+H5 -> 2,630,000,000 | K5: 일반산단과 | L5: 김소영 | M5: 052-229-3084
A6: 2026 | B6: 4 | C6: 울산하이테크밸리(3공구) 일반산단 진입도로 확장공사(전기) | D6: 전기 | E6: 가로등 신설 33본 등 | F6: 318,000,000 | G6: 149,000,000 | I6: =F6+G6+H6 -> 467,000,000 | K6: 일반산단과 | L6: 김소영 | M6: 052-229-3084
A7: 2026 | B7: 4 | C7: 2026년 소방용수시설 신설 공사 | D7: 기타 | E7: 지상식 소화전 15개소 | F7: 70,000,000 | I7: 70,000,000 | K7: 서울주소방서 | L7: 노용래 | M7: 052-210-1252
A8: 2026 | B8: 4 | C8: 울산 KTX역세권 일반산단 진입도로 개설공사 | D8: 토목 | E8: 도로개설 L=0.84㎞, B=20m(교량 1개소) | F8: 12,078,710,000 | G8: 3,111,290,000 | H8: 0 | I8: =SUM(F8:H8) -> 15,190,000,000 | J8: 800,000,000 | K8: 건설부 | L8: 엄민섭 | M8: 052-229-5851
A9: 2026 | B9: 4 | C9: 농소~강동간 도로개설 전기공사(1공구) | D9: 전기 | E9: 가로등 설치 115본, 이설 13본 등 | F9: 587,400,000 | G9: 272,540,000 | H9: 7,750,000 | I9: 867,690,000 | J9: 587,400,000 | K9: 건설부 | L9: 박정석 | M9: 052-229-5865
A10: 2026 | B10: 4 | C10: 2026년 상반기 광역시도 정비공사 | D10: 토목 | E10: 아스팔트 재포장 및 보도 정비 | F10: =I10*0.6 -> 2,949,000,000 | G10: =I10*0.4 -> 1,966,000,000 | H10: 0 | I10: 4,915,000,000 | J10: =I10 -> 4,915,000,000 | K10: 건설부 | L10: 김두희 | M10: 229-5871 | N10: 설계중(5개 구군별 발주)
A11: 2026 | B11: 4 | C11: 1차년도(2026년) 광역시도 보도정비공사 | D11: 토목 | E11: 보도 정비 | F11: =I11*0.6 -> 1,120,200,000 | G11: =I11*0.4 -> 746,800,000 | H11: 0 | I11: 1,867,000,000 | J11: =I11 -> 1,867,000,000 | K11: 건설부 | L11: 김두희 | M11: 229-5871 | N11: 설계중(5개 구군별 발주)
A12: 2026 | B12: 4 | C12: KTX울산역 번영탑 환경정비 및 야간경관 개선공사 | D12: 토목 | E12: 노후수조철거및바닥정비 | F12: 47,560,000 | G12: 14,440,000 | H12: 53,000 | I12: 62,000,000 | K12: 도시경관과 | L12: 방미진 | M12: 052-229-6552
A13: 2026 | B13: 4 | C13: KTX울산역 번영탑 환경정비 및 야간경관 개선공사 | D13: 전기 | E13: 야관경관조명설치 및 전기인입 | F13: 24,485,000 | G13: 24,286,000 | H13: 647,000 | I13: 48,771,000 | K13: 도시경관과 | L13: 방미진 | M13: 052-229-6552
A14: 2026 | B14: 4 | C14: 초화양묘장 비닐하우스 비닐 교체 공사 | D14: 기타 | E14: 12개동 하우스 비닐교체 | F14: 100,000,000 | I14: 100,000,000 | K14: 도시농업과 | L14: 홍종옥 | M14: 052-229-5472
A15: 2026 | B15: 4 | C15: 방어진수질개선사업소 일산중계펌프장 외 2개소 수중펌프 정비공사 | D15: 전문 | E15: 수중펌프 3대 | F15: 86,800,000 | K15: 하수관리과 | L15: 김정현 | M15: 052-229-3296
A16: 2026 | B16: 4 | C16: 방어진수질개선사업소 염포중계펌프장 제진기 보수공사 | D16: 전문 | E16: 제진기 1기 | F16: 47,500,000 | K16: 하수관리과 | L16: 김정현 | M16: 052-229-3296
A17: 2026 | B17: 4 | C17: 울산수목원 양묘장 보완 및 증축 공사 | D17: 기타 | E17: 양묘장(비닐하우스) 1동 증축 | F17: 97,000,000 | I17: =F17+G17+H17 -> 97,000,000 | K17: 수목원 | L17: 조민기 | M17: 052-229-8571
A18: 2026 | B18: 4 | C18: 울산수목원 탐방로 및 진입로 정비 공사 | D18: 토목 | E18: 탐방로 및 진입로 정비 약 1.5km | F18: 190,000,000 | I18: =F18+G18+H18 -> 190,000,000 | K18: 수목원 | L18: 조민기 | M18: 052-229-8571
A19: 2026 | B19: 4 | C19: 암각화박물관 야외전시장 개선공사 | D19: 토목 | E19: 200㎡ 규모 포장공사 | F19: 20,000,000 | G19: 10,000,000 | H19: 0 | I19: 30,000,000 | K19: 문화유산과 | L19: 박준오 | M19: 052-229-4793
A20: 2026 | B20: 4 | C20: 생태계교란생물 퇴치사업 | D20: 기타 | E20: 243,520㎡ | F20: 135,000,000 | I20: =H20+G20+F20 -> 135,000,000 | J20: 135,000,000 | K20: 환경정책과 | L20: 박미영 | M20: 052-229-3144
A21: 2026 | B21: 4~5 | C21: 유량계 판넬 낙뢰보호기 수선공사 | D21: 전문 | E21: 노후 낙뢰설비 100개소 교체 | F21: 20,000,000 | G21: 90,000,000 | I21: 110,000,000 | K21: 시설관리부 | L21: 김평주 | M21: 052-229-6690
A22: 2026 | B22: 5 | C22: 수질연구소 수전설비 구축공사 | D22: 전기 | E22: 수질연구소 전기 인입 및 수전설비 구축 | F22: 150,000,000 | H22: 50,000,000 | I22: 200,000,000 | K22: 급수부 | L22: 김상원 | M22: 052-229-5552
A23: 2026 | B23: 5 | C23: 회야정수사업소 송수펌프 교체 공사 | D23: 기타 | E23: 송수펌프 660㎾ 1대 교체 | F23: 340,000,000 | G23: 160,000,000 | I23: 500,000,000 | J23: 500,000,000 | K23: 회야정수사업소 | L23: 김진욱 | M23: 052-229-6423
A24: 2026 | B24: 5 | C24: 회야정수사업소 2정수장 급속여과지 밸브 교체 공사 | D24: 기타 | E24: 급속여과지 밸브 98대(7ea×14지) 교체 | F24: 1,500,000,000 | I24: 1,500,000,000 | J24: 1,500,000,000 | K24: 회야정수사업소 | L24: 김진욱 | M24: 052-229-6423
A25: 2026 | B25: 5 | C25: 상북지역대 심신안정실 설치공사 | D25: 건축 | E25: 컨테이너 및 내부 인테리어 | F25: 40,000,000 | I25: 40,000,000 | K25: 서울주소방서 | L25: 김성철 | M25: 052-210-1031
A26: 2026 | B26: 5 | C26: 전력 및 자동제어용 UPS 배터리 교체 공사 | D26: 전기 | E26: UPS 배터리 24CELL 교체 | F26: 3,000,000 | G26: 0 | H26: 0 | I26: =SUM(F26:H26) -> 3,000,000 | J26: =I26 -> 3,000,000 | K26: 울산도서관 운영지원과 | L26: 허만희 | M26: 052-229-6865
A27: 2026 | B27: 5 | C27: 냉방시설물(냉온수기, 냉각탑) 세관 및 정비작업 | D27: 전문 | E27: 냉방시설물(냉온수기, 냉각탑) 세관 및 정비 | F27: 15,000,000 | G27: 0 | H27: 0 | I27: 15,000,000 | J27: 15,000,000 | K27: 울산도서관 운영지원과 | L27: 문진우 | M27: 052-229-6862
A28: 2026 | B28: 5 | C28: 지중열 교환기 세정 및 정비작업 | D28: 전문 | E28: 지중열 교환기 세정 및 정비작업 | F28: 18,000,000 | G28: 0 | H28: 0 | I28: 18,000,000 | J28: 18,000,000 | K28: 울산도서관 운영지원과 | L28: 문진우 | M28: 052-229-6862
A29: 2026 | B29: 5 | C29: 매곡천~동대초교 도로개설사업 건축물 철거공사 | D29: 토목 | E29: 건축물 철거(A=1,586㎡) | F29: 230,000,000 | G29: 0 | H29: 0 | I29: 230,000,000 | J29: 230,000,000 | K29: 건설부 | L29: 박우견 김준혁 | M29: 052-229-5861 052-229-5866
A30: 2026 | B30: 5 | C30: 울산시립미술관-국립아시아문화전당재단 공동기획 ACC 순회전《팬레터》 공간 공사 | D30: 건축 | I30: 22,000,000 | K30: 울산시립미술관 | L30: 박은빈 | M30: 052-229-8443
A31: 2026 | B31: 5 | C31: 디지털로 만든 열린 울산, 미디어파사드 설치공사(건설) | D31: 토건 | E31: 공작물 H=10m | F31: 580,000,000 | I31: =SUM(F31:H31) -> 580,000,000 | J31: =I31 -> 580,000,000 | K31: 도시경관과 | L31: 김진형 | M31: 052-229-6543
A32: 2026 | B32: 5 | C32: 디지털로 만든 열린 울산, 미디어파사드 설치공사(전기) | D32: 전기 | E32: 400㎾, LED 디스플레이 | F32: 350,000,000 | G32: 7,200,000,000 | I32: =SUM(F32:H32) -> 7,550,000,000 | J32: =I32 -> 7,550,000,000 | K32: 도시경관과 | L32: 김진형 | M32: 052-229-6543
A33: 2026 | B33: 5 | C33: 디지털로 만든 열린 울산, 미디어파사드 설치공사(통신) | D33: 통신 | E33: 전선관매입 216m | F33: 20,000,000 | I33: =SUM(F33:H33) -> 20,000,000 | J33: =I33 -> 20,000,000 | K33: 도시경관과 | L33: 김진형 | M33: 052-229-6543
A34: 2026 | B34: 5 | C34: 1처리시설 냉방기 교체공사 | D34: 전문 | E34: 냉방기 1식 | F34: 25,000,000 | K34: 하수관리과 | L34: 김정현 | M34: 052-229-3296
A35: 2026 | B35: 5 | C35: 태화강 국가하천(남구) 자전거도로 정비공사 | D35: 토목 | E35: 자전거도로 및 산책로 재포장 1식 | F35: 80,000,000 | G35: 170,000,000 | I35: 250,000,000 | J35: 80,000,000 | K35: 생태정원과 | L35: 박종진 | M35: 052-229-8544
A36: 2026 | B36: 6 | C36: 웅촌면 검단마을 일원 배수관 부설공사 | D36: 토목 | E36: D=80~150㎜, L=1,850m | F36: 407,000,000 | G36: 236,800,000 | H36: 88,800,000 | I36: =SUM(F36:H36) -> 732,600,000 | J36: 1,058,200,000 | K36: 울주사업소 | L36: 황다솜 | M36: 052-229-5795
A37: 2026 | B37: 6 | C37: 두서면 활천리 활천마을 일원 배수관 부설공사 | D37: 토목 | E37: D=80㎜, L=570m | F37: 112,750,000 | G37: 65,600,000 | H37: 24,600,000 | I37: 202,950,000 | J37: 293,150,000 | K37: 울주사업소 | L37: 황다솜 | M37: 052-229-5795
A38: 2026 | B38: 6 | C38: 삼남읍 가천리 소가천마을 일원 배수관 부설공사 | D38: 토목 | E38: D=100㎜, L=1,070m | F38: 235,400,000 | G38: 136,960,000 | H38: 51,360,000 | I38: 423,720,000 | J38: 612,040,000 | K38: 울주사업소 | L38: 정진협 | M38: 052-229-5793
A39: 2026 | B39: 6 | C39: 삼남읍 가천리 등고개마을 일원 배수관 부설공사 | D39: 토목 | E39: D=100㎜, L=4,000m | F39: 171,600,000 | G39: 99,840,000 | H39: 37,440,000 | I39: 308,880,000 | J39: 446,160,000 | K39: 울주사업소 | L39: 정진협 | M39: 052-229-5793
A40: 2026 | B40: 6 | C40: 온양읍 운화리 상대마을 일원 배수관 부설공사 | D40: 토목 | E40: D=100㎜, L=780m | F40: 880,000,000 | G40: 512,000,000 | H40: 192,000,000 | I40: 1,584,000,000 | J40: 2,288,000,000 | K40: 울주사업소 | L40: 박소현 | M40: 052-229-5791
A41: 2026 | B41: 6 | C41: 척과천 지방하천 정비사업 | D41: 토목 | E41: 하천정비 L=6.0㎞ | F41: 14,037,386,000 | G41: 2,750,869,000 | I41: =SUM(F41:H41) -> 16,788,255,000 | J41: =+F41 -> 14,037,386,000 | K41: 맑은물정책 | L41: 권나영 | M41: 052-229-7555 | N41: 조달청 계약의뢰
A42: 2026 | B42: 6 | C42: 회야강(회야지구) 지방하천 정비사업 | D42: 토목 | E42: 하천정비 L=8.08㎞ | F42: 12,616,300,000 | G42: 4,617,610,000 | I42: =SUM(F42:H42) -> 17,233,910,000 | J42: =+F42 -> 12,616,300,000 | K42: 맑은물정책 | L42: 권나영 | M42: 052-229-7555 | N42: 조달청 계약의뢰
A43: 2026 | B43: 6 | C43: 방어진수질개선사업소 잡용수 배관 교체공사 | D43: 전문 | E43: 잡용수 배관교체 1식 | F43: 100,000,000 | G43: 100,000,000 | K43: 하수관리과 | L43: 차명환 | M43: 052-229-3293
A44: 2026 | B44: 6 | C44: 복성맨홀펌프장 시설 개선공사 | D44: 전문 | E44: 오수관 매설 160m | F44: 80,000,000 | G44: 20,000,000 | K44: 하수관리과 | L44: 박상욱 | M44: 052-229-3295
A45: 2026 | B45: 6 | C45: 2026년 회야하수처리구역 하수관로 정비 및 부설공사 | D45: 전문 | E45: 노후 오수관 정비 L=208m, 콘크리트맨홀교체 370개 | F45: 200,000,000 | G45: 150,000,000 | K45: 하수관리과 | L45: 김지인 | M45: 052-229-3297
A46: 2026 | B46: 6 | C46: 2026년 반구천 일원 역사문화탐방로 조성공사 | D46: 토목 | E46: 인도교 설치 L=56m, 휴게공간 조성 등 | F46: 1,700,000,000 | G46: 650,000,000 | H46: 0 | I46: 2,350,000,000 | J46: 1,700,000,000 | K46: 문화유산과 | L46: 손태환 | M46: 052-229-7502

Sheet 용역
A1: 발주년도 | B1: 발주월 | C1: 용역명 | D1: 업무유형 | E1: 용역구분 | F1: 사업내용(발주규모 등) | G1: 예산액 (단위: 원) | H1: 부서명 | I1: 담당자 | J1: 연락처 | K1: 비고
A2: 2026 | B2: 4 | C2: 농소2배수지 신설사업 지반조사용역 | D2: 신규 | E2: 기술용역 | F2: 토질조사 1식(현장 및 실내시험 포함) | G2: 110,400,000 | H2: 급수부 | I2: 정병욱 | J2: 052-229-5554
A3: 2026 | B3: 4 | C3: 동구지역 블록시스템 재정비사업 교통소통대책 수립 용역 | D3: 신규 | E3: 기술용역 | F3: 교통소통대책 수립 및 심의 1 식 등 | G3: 30,000,000 | H3: 시설관리부 | I3: 정상봉 | J3: 052-229-5572
A4: 2026 | B4: 4 | C4: 노후상수도관 정비공사 감독권한대행 건설사업관리용역 | D4: 신규 | E4: 기술용역 | F4: 노후상수도관 정비공사에 대한 품질,안전 등 건설사업관리 1식 | G4: 200,000,000 | H4: 시설관리부 | I4: 서성용 | J4: 052-229-6233
A5: 2026 | B5: 4 | C5: 연암동 산90-7일원 배수관 및 가압장 설치공사 실시설계용역 | D5: 신규 | E5: 기술용역 | F5: 배수관 및 가압장 설치공사 설계 1식 | G5: 50,000,000 | H5: 북부사업소 | I5: 노희영 | J5: 052-229-5761
A6: 2026 | B6: 4 | C6: 사후관리매립장 주변환경영향 종합보고서 작성 | D6: 장기 | E6: 일반용역 | F6: 온산 1차 매립장 | G6: 16,000,000 | H6: 자원순환과 | I6: 임재철 | J6: 052-229-3244
A7: 2026 | B7: 4 | C7: 울산하이테크밸리(3공구) 일반산단 진입도로 확장공사 폐기물처리용역 | D7: 기타 | E7: 신규 | F7: 폐기물처리 1식 | G7: 211,000,000 | H7: 일반산단과 | I7: 김소영 | J7: 052-229-3084
A8: 2026 | B8: 4 | C8: 상반기 저수조 우수조 청소 | D8: 신규 | E8: 일반용역 | F8: 저수조 우수조 청소 | G8: 5,000,000 | H8: 울산도서관 운영지원과 | I8: 문진우 | J8: 052-229-6862
A9: 2026 | B9: 4 | C9: 실내공기질 측정 용역 | D9: 신규 | E9: 일반용역 | F9: 실내공기질 측정 | G9: 2,000,000 | H9: 울산도서관 운영지원과 | I9: 옥정민 | J9: 052-229-6861
A10: 2026 | B10: 4 | C10: 2026년 울산 올해의 책 선포식 | D10: 신규 | E10: 일반용역 | F10: 올해의 책 선포 및 작가 북토크 | G10: 10,000,000 | H10: 울산도서관 자료정책과 | I10: 서예린 | J10: 052-229-6902
A11: 2026 | B11: 4 | C11: 2026년 울산도서관 도서관주간 행사 | D11: 신규 | E11: 일반용역 | F11: 강연 및 공연 | G11: 11,000,000 | H11: 울산도서관 자료정책과 | I11: 이유진 | J11: 052-229-6905
A12: 2026 | B12: 4 | C12: 울산 KTX 역세권 일반산단 진입도로 개설공사 외 1개소 감독권한대행 등 건설사업관리용역 | D12: 신규 | E12: 기술용역 | F12: 건설사업관리용역 1식 | G12: 2,700,000,000 | H12: 건설부 | I12: 엄민섭 | J12: 052-229-5851
A13: 2026 | B13: 4 | C13: 2026년 상반기 광역시도 정비공사 폐기물처리용역 | D13: 신규 | E13: 기술용역 | F13: 폐아스콘, 폐콘크리트 처리 | H13: 건설부 | I13: 김두희 | J13: 052-229-5871 | K13: 설계중(5개 구군별 발주)
A14: 2026 | B14: 4 | C14: 1차년도(2026년) 광역시도 보도정비공사 폐기물처리용역 | D14: 신규 | E14: 기술용역 | F14: 폐콘크리트 처리 | H14: 건설부 | I14: 김두희 | J14: 052-229-5871 | K14: 설계중(5개 구군별 발주)
A15: 2026 | B15: 4 | C15: 물순환 기본계획 수립 및 물순환 촉진구역 지정 용역 | D15: 신규 | E15: 학술용역 | F15: 물순환 기본계획 수립 및 촉진구역 지정 | G15: 200,000,000 | H15: 맑은물정책과 | I15: 김상혁 | J15: 052-229-7553
A16: 2026 | B16: 4 | C16: 울산시립미술관-국립아시아문화전당재단 공동기획 ACC 순회전《팬레터》 작품 재제작 및 설치 용역 | D16: 신규 | E16: 일반용역 | F16: 작품 재제작 및 설치 | G16: 35,000,000 | H16: 울산시립미술관 | I16: 박은빈 | J16: 052-229-8443
A17: 2026 | B17: 4 | C17: 울산시립미술관-국립아시아문화전당재단 공동기획 ACC 순회전《팬레터》 장비 임차 | D17: 신규 | E17: 일반용역 | F17: 장비 임차 | G17: 16,800,000 | H17: 울산시립미술관 | I17: 박은빈 | J17: 052-229-8443
A18: 2026 | B18: 4 | C18: KTX울산역 번영탑 환경정비 및 야간경관 개선공사 폐기물처리용역 | D18: 신규 | E18: 일반용역 | F18: 폐콘크리트 | G18: 8,775,000 | H18: 도시경관과 | I18: 방미진 | J18: 052-229-6552
A19: 2026 | B19: 4 | C19: 태화강 교량 경관디자인 사업 기본 및 실시설계 | D19: 신규 | E19: 일반용역 | F19: 교량2개소(태화교, 명촌교) 경관조명설치 전기설계 | G19: 55,000,000 | H19: 도시경관과 | I19: 이나은 | J19: 052-229-6544
A20: 2026 | B20: 4 | C20: 공공건축물 안전디자인 개선사업 용역 | D20: 장기 | E20: 기술용역 | F20: 안전디자인(설계) 및 물품설치 | G20: 200,000,000 | H20: 도시경관과 | I20: 정필성 | J20: 052-229-6554
A21: 2026 | B21: 4 | C21: 회야하수처리시설 증설사업 가설사무실 철거공사 실시설계용역 | D21: 신규 | E21: 기술용역 | F21: 공사용 가설건축물 철거공사, 폐기물처리용역 실시설계 및 각종 인허가 자료 1식 | G21: 9,240,000 | H21: 하수관리과 | I21: 곽동욱 | J21: 052-229-3285
A22: 2026 | B22: 4 | C22: 공공하수관로 기술진단용역(굴화 및 강동하수처리구역) | D22: 신규 | E22: 기술용역 | F22: 기술진단 1식 | G22: 970,000,000 | H22: 하수관리과 | I22: 허진우 | J22: 052-229-3305
A23: 2026 | B23: 4 | C23: AI 행정비서 도입 | D23: 신규 | E23: 일반 | F23: - 사업명 :AI행정비서 도입 - 사업기간 : '26. 4.~12. - 주요내용 : 공공기관 보안 정책 적용 생성형 AI 서비스 제공 | G23: 33,000,000 | H23: 정보화담당관 | I23: 심현정 | J23: 052-229-2342
A24: 2026 | B24: 4 | C24: 2026년 지방선거 대비 보안취약점 진단 | D24: 신규 | E24: 기술용역 | F24: 사이버 위협 대응력 강화 등 정보보안 역량 강화 사업 1식 | G24: 18,450,000 | H24: 정보화담당관 | I24: 설동훈 | J24: 052-229-2372
A25: 2026 | B25: 4 | C25: 녹취 자동응답 시스템 기능 개선 | D25: 신규 | E25: 기술용역 | F25: 녹취 시스템 1식 업그레이드, 자동응답시스템 1식 업그레이드 | G25: 12,000,000 | H25: 정보화담당관 | I25: 이상규 | J25: 052-229-2383
A26: 2026 | B26: 4 | C26: 울산수목원 산지전용 신고 | D26: 신규 | E26: 기술용역 | F26: 산지전용 측량 및 신고 업무 | G26: 20,000,000 | H26: 수목원 | I26: 박해동 | J26: 052-229-8572
A27: 2026 | B27: 4 | C27: 울산문화유산센터 건립 건축설계공모 | D27: 신규 | E27: 기술용역 | F27: 4개층, 8,000㎡ | G27: 1,657,106,000 | H27: 울산박물관 | I27: 송성원 | J27: 052-229-4712
A28: 2026 | B28: 4 | C28: 직급별 맞춤형(6급) 교육 운영 용역 | D28: 신규 | E28: 일반용역 | F28: 직급별 맞춤형(6급) 교육 운영 1식 | G28: 7,600,000 | H28: 인재교육과 | I28: 허송무 | J28: 052-229-4972
A29: 2026 | B29: 4 | C29: 스마트 기획력 향상 교육 운영 용역 | D29: 신규 | E29: 일반용역 | F29: 스마트 기획력 향상 교육 운영 용역 | G29: 18,000,000 | H29: 인재교육과 | I29: 이수인 | J29: 052-229-4974
A30: 2026 | B30: 4 | C30: 제1기 지식UP콘서트 | D30: 신규 | E30: 일반용역 | F30: 제1기 지식UP콘서트 교육 운영 1식 | G30: 22,000,000 | H30: 인재교육과 | I30: 허송무 | J30: 052-229-4972
A31: 2026 | B31: 4 | C31: 행복한 미래설계 1기 교육 운영 용역 | D31: 신규 | E31: 일반용역 | F31: 교육운영 | G31: 96,000,000 | H31: 인재교육과 | I31: 김민수 | J31: 052-229-4975
A32: 2026 | B32: 4 | C32: 디지털시대 데이터 활용 교육 운영 용역 | D32: 신규 | E32: 일반용역 | F32: 디지털시대 데이터 활용 교육 운영 용역 | G32: 4,000,000 | H32: 인재교육과 | I32: 이수인 | J32: 052-229-4974
A33: 2026 | B33: 4 | C33: 저연차 공무원 울부심up 워크숍 1기 | D33: 신규 | E33: 일반용역 | F33: 저연차 공무원 대상 울부심UP 워크숍 1식 | G33: 26,000,000 | H33: 인재교육과 | I33: 허송무 | J33: 052-229-4972
A34: 2026 | B34: 4 | C34: 2026년 스마트러닝과정 교육 위탁운영 용역 1분기 교육비 | D34: 신규 | E34: 일반용역 | F34: 교육운영 | G34: 41,112,000 | H34: 인재교육과 | I34: 예연성 | J34: 052-229-4973
A35: 2026 | B35: 4 | C35: 2026년 화상외국어 과정 위탁운영 | D35: 신규 | E35: 일반용역 | F35: 교육운영 | G35: 18,800,000 | H35: 인재교육과 | I35: 예연성 | J35: 052-229-4973
A36: 2026 | B36: 4 | C36: 암각화박물관 특별기획전 전시 연출 용역 | D36: 신규 | E36: 일반 | F36: 전시 디자인, 진열장 설치, 영상 제작 등 | G36: 99,000,000 | H36: 문화유산과 | I36: 최윤경 | J36: 052-229-4792
A37: 2026 | B37: 4 | C37: 암각화박물관 야외전시장 개선사업 | D37: 신규 | E37: 일반 | F37: 모형물 이동 설치, 안내판 제작, 조형물 제작 설치 등 | G37: 50,000,000 | H37: 문화유산과 | I37: 성소현 | J37: 052-229-4791
A38: 2026 | B38: 4 | C38: 암각화박물관 주말 프로그램 용역 | D38: 신규 | E38: 일반 | F38: 프로그램 진행 공간 조성, 강사 섭외·관리 등 | G38: 9,000,000 | H38: 문화유산과 | I38: 최윤경 | J38: 052-229-4792
A39: 2026 | B39: 4 | C39: 제48차 세계유산위원회 연계 반구천의 암각화 전시 부스 설치 및 운영 용역 | D39: 신규 | E39: 일반 | F39: 전시장 설치, 체험교구제작, 장비대여, 운영인력 등 | G39: 50,000,000 | H39: 문화유산과 | I39: 박미현 | J39: 052-229-7504
A40: 2026 | B40: 4 | C40: 2026년 공연예술 지역 유통지원 사업 마당극 「쪽빛황혼」 | D40: 신규 | E40: 일반 | F40: 2026년 공연예술 지역 유통지원 사업 마당극 '쪽빛황혼' 공연실행 | G40: 45,000,000 | H40: 예술사업과 | I40: 김하린 | J40: 052-226-8236
A41: 2026 | B41: 4 | C41: 지적측량 경진대회 | D41: 신규 | E41: 일반용역 | F41: 토털스테이션을 활용한 지적측량 실시 및 평가 행사 대행 | G41: 3,000,000 | H41: 토지정보과 | I41: 김정민 | J41: 052-229-4463
A42: 2026 | B42: 5 | C42: 회야댐 인근 및 생태습지 풀베기 용역 | D42: 신규 | E42: 일반용역 | F42: 작업구역(㎡):(예초)92,510/(넝쿨제거)872/(차량운반)1,000 | G42: 75,000,000 | H42: 회야정수사업소 | I42: 이상욱 | J42: 052-229-6412
A43: 2026 | B43: 5 | C43: 복산동 센트리지 일원 배수관 관세척 용역 | D43: 신규 | E43: 기술용역 | F43: 관세척 1.8km | G43: 88,200,000 | H43: 중부사업소 | I43: 서성대 | J43: 052-229-5671
A44: 2026 | B44: 5 | C44: 울주군 관내 노후상수관로 관세척 용역 | D44: 신규 | E44: 기술용역 | F44: 관세척 1식 | G44: 250,000,000 | H44: 울주사업소 | I44: 박소현 | J44: 052-229-5791
A45: 2026 | B45: 5 | C45: 2026년 사후관리매립장 사면 제초작업 | D45: 장기 | E45: 일반용역 | F45: 사후관리 매립장 4곳 | G45: 87,000,000 | H45: 자원순환과 | I45: 임재철 | J45: 052-229-3244
A46: 2026 | B46: 5 | C46: 상반기 자동제어 시스템 점검 | D46: 신규 | E46: 일반용역 | F46: 자동제어 시스템 점검 | G46: 5,000,000 | H46: 울산도서관 운영지원과 | I46: 문진우 | J46: 052-229-6862
A47: 2026 | B47: 5 | C47: 2026년 울산도서관 기증자료 정리ㆍ장비작업 | D47: 신규 | E47: 일반용역 | F47: 울산도서관 기증자료 정리ㆍ장비작업 | G47: 4,232,000 | H47: 울산도서관 정보서비스과 | I47: 심성희 | J47: 052-229-6998
A48: 2026 | B48: 5 | C48: 2026년 5월 문화가 있는 날 | D48: 신규 | E48: 일반용역 | F48: 명사특강 | G48: 7,700,000 | H48: 울산도서관 자료정책과 | I48: 김정애 | J48: 052-229-6903
A49: 2026 | B49: 5 | C49: 매곡천~동대초교 도로개설사업 건설폐기물처리용역 | D49: 신규 | E49: 일반 | F49: 폐콘크리트 처리(1,489ton) | G49: 79,250,000 | H49: 건설부 | I49: 박우견 김준혁 | J49: 052-229-5861 052-229-5866
A50: 2026 | B50: 5 | C50: 매곡천~동대초교 도로개설사업 혼합폐기물처리용역(소각) | D50: 신규 | E50: 일반 | F50: 혼합폐기물(소각) 처리(32ton) | G50: 9,970,000 | H50: 건설부 | I50: 박우견 김준혁 | J50: 052-229-5861 052-229-5866
A51: 2026 | B51: 5 | C51: 매곡천~동대초교 도로개설사업 혼합폐기물처리용역(매립) | D51: 신규 | E51: 일반 | F51: 혼합폐기물(매립) 처리(25ton) | G51: 6,970,000 | H51: 건설부 | I51: 박우견 김준혁 | J51: 052-229-5861 052-229-5866
A52: 2026 | B52: 5 | C52: 매곡천~동대초교 도로개설사업 임목폐기물처리용역 | D52: 신규 | E52: 일반 | F52: 임목폐기물 처리(17ton) | G52: 3,180,000 | H52: 건설부 | I52: 박우견 김준혁 | J52: 052-229-5861 052-229-5866
A53: 2026 | B53: 5 | C53: 매곡천~동대초교 도로개설사업 건축물 해체 감리용역 | D53: 신규 | E53: 기술 | F53: 건축물해체 감리 1식 | G53: 21,500,000 | H53: 건설부 | I53: 박우견 김준혁 | J53: 052-229-5861 052-229-5866
A54: 2026 | B54: 5 | C54: 2026년 상반기 시설물 정기안전점검 | D54: 신규 | E54: 일반용역 | F54: 미술관 시설물 안전점검 | G54: 5,100,000 | H54: 울산시립미술관 | I54: 김유경 | J54: 052-229-8433
A55: 2026 | B55: 5 | C55: 디지털로 만든 열린 울산, 미디어파사드 설치공사 건설사업관리 | D55: 신규 | E55: 기술용역 | F55: 건설사업관리 1식 | G55: 50,000,000 | H55: 도시경관과 | I55: 김진형 | J55: 052-229-6543
A56: 2026 | B56: 5 | C56: 2026년 고래도시 울산 탐방 과정 교육 운영 용역 | D56: 신규 | E56: 일반용역 | F56: 교육운영 | G56: 18,000,000 | H56: 인재교육과 | I56: 박지향 | J56: 052-229-4963
A57: 2026 | B57: 5 | C57: 현대미술의이해 | D57: 신규 | E57: 일반용역 | F57: 교육운영 | G57: 5,000,000 | H57: 인재교육과 | I57: 허송무 | J57: 052-229-4972
A58: 2026 | B58: 5 | C58: 현장 안전체험 1기 | D58: 신규 | E58: 일반용역 | F58: 교육운영 | G58: 50,000 | H58: 인재교육과 | I58: 김민수 | J58: 052-229-4975
A59: 2026 | B59: 5 | C59: 2026년 제2기 전화이용 외국어과정 위탁운영 | D59: 신규 | E59: 일반용역 | F59: 교육운영 | G59: 17,000,000 | H59: 인재교육과 | I59: 예연성 | J59: 052-229-4973
A60: 2026 | B60: 5 | C60: 5~6급 역량강화 | D60: 신규 | E60: 일반용역 | F60: 교육운영 | G60: 5,650,000 | H60: 인재교육과 | I60: 허송무 | J60: 052-229-4972
A61: 2026 | B61: 5 | C61: 일상에서 즐기는 커피 바리스타 1기 | D61: 신규 | E61: 일반용역 | F61: 교육운영 | G61: 1,400,000 | H61: 인재교육과 | I61: 이수인 | J61: 052-229-4974
A62: 2026 | B62: 5 | C62: 체력튼튼 건강관리 1기 | D62: 신규 | E62: 일반용역 | F62: 교육운영 | G62: 2,750,000 | H62: 인재교육과 | I62: 김민수 | J62: 052-229-4975
A63: 2026 | B63: 5 | C63: 체력튼튼 건강관리 2기 | D63: 신규 | E63: 일반용역 | F63: 교육운영 | G63: 2,750,000 | H63: 인재교육과 | I63: 김민수 | J63: 052-229-4975
A64: 2026 | B64: 5 | C64: 기획전시 홍보물 제작 | D64: 신규 | E64: 일반 | F64: 리플릿(약 2000매) 및 팜플렛(약 300부) | G64: 8,000,000 | H64: 예술사업과 | I64: 이정란 | J64: 052-226-8253
A65: 2026 | B65: 6 | C65: 유량계 검교정 용역 | D65: 신규 | E65: 기술용역 | F65: 현장 유량계 검교정 | G65: 95,000,000 | H65: 시설관리부 | I65: 김평주 | J65: 052-229-6688
A66: 2026 | B66: 6 | C66: 웅촌면 검단마을 일원 배수관 부설공사 건설폐기물처리용역 | D66: 신규 | E66: 기술용역 | F66: 건설폐기물 처리 1식 | G66: 29,600,000 | H66: 울주사업소 | I66: 황다솜 | J66: 052-229-5795
A67: 2026 | B67: 6 | C67: 웅촌면 검단마을 일원 배수관 부설공사 GIS DB구축용역 | D67: 신규 | E67: 기술용역 | F67: GIS DB 구축 1식 | G67: 59,200,000 | H67: 울주사업소 | I67: 황다솜 | J67: 052-229-5795
A68: 2026 | B68: 6 | C68: 두서면 활천리 활천마을 일원 배수관 부설공사 건설폐기물처리용역 | D68: 신규 | E68: 기술용역 | F68: 건설폐기물 처리 1식 | G68: 8,200,000 | H68: 울주사업소 | I68: 황다솜 | J68: 052-229-5795
A69: 2026 | B69: 6 | C69: 두서면 활천리 활천마을 일원 배수관 부설공사 GIS DB구축용역 | D69: 신규 | E69: 기술용역 | F69: GIS DB 구축 1식 | G69: 16,000,000 | H69: 울주사업소 | I69: 황다솜 | J69: 052-229-5795
A70: 2026 | B70: 6 | C70: 삼남읍 가천리 소가천마을 일원 배수관 부설공사 건설폐기물처리용역 | D70: 신규 | E70: 기술용역 | F70: 건설폐기물 처리 1식 | G70: 17,120,000 | H70: 울주사업소 | I70: 정진협 | J70: 052-229-5793
A71: 2026 | B71: 6 | C71: 삼남읍 가천리 소가천마을 일원 배수관 부설공사 GIS DB구축용역 | D71: 신규 | E71: 기술용역 | F71: GIS DB 구축 1식 | G71: 34,240,000 | H71: 울주사업소 | I71: 정진협 | J71: 052-229-5793
A72: 2026 | B72: 6 | C72: 삼남읍 가천리 등고개마을 일원 배수관 부설공사 건설폐기물처리용역 | D72: 신규 | E72: 기술용역 | F72: 건설폐기물 처리 1식 | G72: 12,480,000 | H72: 울주사업소 | I72: 정진협 | J72: 052-229-5793
A73: 2026 | B73: 6 | C73: 삼남읍 가천리 등고개마을 일원 배수관 부설공사 GIS DB구축용역 | D73: 신규 | E73: 기술용역 | F73: GIS DB 구축 1식 | G73: 24,960,000 | H73: 울주사업소 | I73: 정진협 | J73: 052-229-5793
A74: 2026 | B74: 6 | C74: 온양읍 운화리 상대마을 일원 배수관 부설공사 건설폐기물처리용역 | D74: 신규 | E74: 기술용역 | F74: 건설폐기물 처리 1식 | G74: 64,000,000 | H74: 울주사업소 | I74: 박소현 | J74: 052-229-5791
A75: 2026 | B75: 6 | C75: 온양읍 운화리 상대마을 일원 배수관 부설공사 GIS DB구축용역 | D75: 신규 | E75: 기술용역 | F75: GIS DB 구축 1식 | G75: 128,000,000 | H75: 울주사업소 | I75: 박소현 | J75: 052-229-5791
A76: 2026 | B76: 6 | C76: 개별 냉·난방기 세척작업 | D76: 신규 | E76: 일반용역 | F76: fcu 전체 정비 및 세척 | G76: 5,000,000 | H76: 울산도서관 운영지원과 | I76: 문진우 | J76: 052-229-6862
A77: 2026 | B77: 6 | C77: 척과천외 1개소 지방하천 정비사업 감독권한대행 등 통합건설사업관리용역 | D77: 장기 | E77: 기술용역 | F77: 건설사업관리용역 1식 | G77: 4,920,000,000 | H77: 맑은물정책과 | I77: 권나영 | J77: 052-229-7555
A78: 2026 | B78: 6 | C78: 2026년 울산박물관 제2차 특별기획전 전시 연출 용역 | D78: 신규 | E78: 일반용역 | F78: 전시장 설치, 영상 및 사인물 제작 | G78: 200,000,000 | H78: 울산박물관 | I78: 최윤진 | J78: 052-229-4721
A79: 2026 | B79: 6 | C79: 정책홍보 역량 강화 | D79: 신규 | E79: 일반용역 | F79: 교육운영 | G79: 6,600,000 | H79: 인재교육과 | I79: 이수인 | J79: 052-229-4974
A80: 2026 | B80: 6 | C80: 건강한 힐링 레시피 1기 | D80: 신규 | E80: 일반용역 | F80: 교육운영 | G80: 3,740,000 | H80: 인재교육과 | I80: 김민수 | J80: 052-229-4975

Sheet 물품
A1: 발주년도 | B1: 발주월 | C1: 사업명 | D1: 세부품명번호 * | E1: 품 명 | F1: 수량 | G1: 수량단위 | H1: 구매예정금액(원) | I1: 부서명 | J1: 담당자 | K1: 연락처 | L1: 비고
A2: 2026 | B2: 4 | C2: 청사 주차관제시스템 개선공사 자재 1 | D2: 2410168909 | E2: 차량차단기 | F2: 3 | G2: EA | H2: 34,500,000 | I2: 경영부 | J2: 홍은총 | K2: 052-229-5533
A3: 2026 | B3: 4 | C3: 청사 주차관제시스템 개선공사 자재 2 | D3: 2410168909 | E3: 차량차단기 | F3: 1 | G3: EA | H3: 13,000,000 | I3: 경영부 | J3: 홍은총 | K3: 052-229-5533
A4: 2026 | B4: 4 | C4: 청사 주차관제시스템 개선공사 자재 3 | D4: 2410168909 | E4: 차량차단기 | F4: 1 | G4: EA | H4: 2,500,000 | I4: 경영부 | J4: 홍은총 | K4: 052-229-5533
A5: 2026 | B5: 4 | C5: 청사 주차관제시스템 개선공사 자재 4 | D5: 2410168901 | E5: 주차주제어장치 | F5: 1 | G5: EA | H5: 5,700,000 | I5: 경영부 | J5: 홍은총 | K5: 052-229-5533
A6: 2026 | B6: 4 | C6: 청사 주차관제시스템 개선공사 자재 5 | D6: 2410168910 | E6: 주차관제주변기기 | F6: 2 | G6: EA | H6: 3,000,000 | I6: 경영부 | J6: 홍은총 | K6: 052-229-5533
A7: 2026 | B7: 4 | C7: 소방차량 필요소요물품 구매 | E7: 차량소요물품 | F7: 1373 | G7: 점 | H7: 4,000,000 | I7: 서울주소방서 | J7: 박진우 | K7: 052-210-1033
A8: 2026 | B8: 4 | C8: 의용소방대의 날 기념품 구매 | E8: 의용소방대원 필요물품 | F8: 350 | G8: 점 | H8: 6,000,000 | I8: 서울주소방서 | J8: 이명규 | K8: 052-210-1212
A9: 2026 | B9: 4 | C9: 구조장비 소모품 구매 | D9: 1512180201 | E9: 장비윤활제 등 40종 | F9: 439 | G9: 점 | H9: 29,000,000 | I9: 서울주소방서 | J9: 최희혜 | K9: 052-210-1223
A10: 2026 | B10: 4 | C10: 상반기 소방공무원 피복 구매 | E10: 피복류, 신발류 | G10: 점 | H10: 37,400,000 | I10: 서울주소방서 | J10: 황기홍 | K10: 052-210-1033
A11: 2026 | B11: 4 | C11: 2026년 울산 올해의 책 선정도서 구입 | D11: 5510151001 | E11: 도서 | F11: 1 | G11: 식 | H11: 40,000,000 | I11: 울산도서관 자료정책과 | J11: 김정애 | K11: 052-229-6903
A12: 2026 | B12: 4 | C12: 방어진수질개선사업소 실험실용 TOC(총유기탄소) 분석장비 구입 | D12: 4111331501 | E12: 총유기탄소측정기(TOC) | F12: 1 | G12: 세트 | H12: 94,050,000 | I12: 하수관리과 | J12: 이인홍 | K12: 052-229-3294
A13: 2026 | B13: 4 | C13: 오미오 믹서 교체 | D13: 45111706 | E13: 오디오 믹서 | F13: 2 | G13: 대 | H13: 62,000,000 | I13: 정보화담당관 | J13: 백현수 | K13: 052-229-2394
A14: 2026 | B14: 4 | C14: 행정업무용 IP전화기 구입 | D14: 4319151101 | E14: IP전화기 | F14: 122 | G14: 대 | H14: 55,000,000 | I14: 정보화담당관 | J14: 이상규 | K14: 052-229-2383
A15: 2026 | B15: 4 | C15: 울산수목원 유전자 확보 | D15: 1016159901 | E15: 조경수 | F15: 50 | G15: 본 | H15: 100,000,000 | I15: 수목원관리사무소 | J15: 조민기 | K15: 052-229-8571
A16: 2026 | B16: 4 | C16: 울산박물관 2026년 2차 특별전 조명 구매 | D16: - | E16: 특수목적조명 | F16: 9 | G16: 개 | H16: 18,000,000 | I16: 울산박물관 | J16: 이승우 | K16: 052-229-4724
A17: 2026 | B17: 4 | C17: 2026년 울산박물관 제1차 특별전 홍보물 제작 | D17: - | E17: 현수막,포스터,리플릿 등 | F17: 1 | G17: 식 | H17: 10,000,000 | I17: 울산박물관 | J17: 권소영 | K17: 052-229-4723
A18: 2026 | B18: 5 | C18: 상수도 홍보물품(인형키링) 제작 | D18: 6014100201 | E18: 인형 | F18: 1,000 | G18: 개 | H18: 7,020,000 | I18: 경영부 | J18: 김정희 | K18: 052-229-5515 | L18: 기존 3월로 제출하였으나 발주일정 연기
A19: 2026 | B19: 5 | C19: 화재진압장비 소모품 구매 | D19: 4619161301 | E19: 포소화약제(합성계면활성제 1%) | F19: 20 | G19: 점 | H19: 3,300,000 | I19: 서울주소방서 | J19: 김유진 | K19: 052-210-1213 | L19: 20L
A20: 2026 | B20: 5 | C20: 2026년 제3회 울산도서관 국내도서 구입 | D20: 5510151001 | E20: 서적 | F20: 2,900 | G20: 권 | H20: 49,000,000 | I20: 울산도서관 정보서비스과 | J20: 우지혜 | K20: 052-229-6983
A21: 2026 | B21: 5 | C21: 2026년 가을초화(국화) 생산을 위한 플러그묘 구입 | D21: 24907181 | E21: 플러그묘 | F21: 157 | G21: 트레이 | H21: 15,700,000 | I21: 도시농업과 | J21: 홍종옥 | K21: 052-229-5472
A22: 2026 | B22: 5 | C22: 2026년 여름2차 초화 생산을 위한 플러그묘 구입 | D22: 24935425 | E22: 플러그묘 | F22: 250 | G22: 트레이 | H22: 6,500,000 | I22: 도시농업과 | J22: 홍종옥 | K22: 052-229-5472
A23: 2026 | B23: 5 | C23: 반구천의 암각화 홍보물 제작 | E23: 리플릿, 기념품 등 | F23: 500 | G23: 개 | H23: 10,000,000 | I23: 문화유산과 | J23: 박미현 | K23: 052-229-7504
A24: 2026 | B24: 5 | C24: 반구천의 암각화 옥외 안내판 제작 | E24: 안내판 등 | F24: 2 | G24: 식 | H24: 6,000,000 | I24: 문화유산과 | J24: 박미현 | K24: 052-229-7504
A25: 2026 | B25: 6 | C25: 가스크로마토그래프 질량분석기 구매 | D25: 4111540401 | E25: 기체크로마토그래프 질량분석기 | F25: 1 | G25: set | H25: 200,000,000 | I25: 수질연구소 | J25: 오종석 | K25: 052-229-5632
A26: 2026 | B26: 6 | C26: 도시청결 기동대 피복비 구입 | E26: 안전화, 안전조끼, 장갑, 우의 등 | F26: 111 | G26: 개 | H26: 11,100,000 | I26: 자원순환과 | J26: 안상욱 | K26: 052-229-3223
A27: 2026 | B27: 6 | C27: 소방차 길 터주기 훈련과 골든타임 확보 홍보물품 | E27: 전단지 등 홍보물품 | G27: 점 | H27: 2,000,000 | I27: 서울주소방서 | J27: 서원정 | K27: 052-210-1241
A28: 2026 | B28: 6 | C28: 화재조사활동 소요물품 | E28: 화재조사활동 소요물품 | F28: 529 | G28: 점 | H28: 4,800,000 | I28: 서울주소방서 | J28: 장동찬 | K28: 052-210-1242
A29: 2026 | B29: 6 | C29: 울산도서관 비도서(DVD) 구입 | D29: 43202005 | E29: 광디스크 | F29: 300 | G29: 개 | H29: 3,000,000 | I29: 울산도서관 정보서비스과 | J29: 장원익 | K29: 052-229-6984
A30: 2026 | B30: 6 | C30: 도로보수자재 구입 | E30: 무단횡단방지휀스, 탄력봉, 포대아스콘 등 | F30: 1 | G30: 식 | H30: 70,000,000 | I30: 건설부 | J30: 이대원 | K30: 052-229-5873
A31: 2026 | B31: 6 | C31: 2026년 2차 교량꽃걸이용 웨이브페츄니아 플러그묘 구입 | D31: 24907180 | E31: 플러그묘 | F31: 139 | G31: 트레이 | H31: 11,259,000 | I31: 도시농업과 | J31: 홍종옥 | K31: 052-229-5472
A32: 2026 | B32: 6 | C32: 교량꽃걸이 초화 식재용 상토 구입 | D32: 24824634 | E32: 상토 | F32: 1,700 | G32: 포 | H32: 13,600,000 | I32: 도시농업과 | J32: 홍종옥 | K32: 052-229-5472
A33: 2026 | B33: 6 | C33: 노후농기계 대체 사업 | E33: 트랙터 등 6종 16대(예정) | F33: 16 | G33: 대 | H33: 200,000,000 | I33: 도시농업과 | J33: 윤준호 | K33: 052-229-5432 | L33: 4월 심의회 후 결정
A34: 2026 | B34: 6 | C34: 임대사업소 농업기계 구입 | E34: 잔가지파쇄기 등 4종 12대(예정) | F34: 12 | G34: 대 | H34: 124,500,000 | I34: 도시농업과 | J34: 윤준호 | K34: 052-229-5432 | L34: 4월 심의회 후 결정
A35: 2026 | B35: 6 | C35: 교육용 농업기계 구입 | D35: 23251808-23399358 | E35: 파이프밴딩머신 | F35: 1 | G35: 대 | H35: 20,000,000 | I35: 도시농업과 | J35: 윤준호 | K35: 052-229-5432 | L35: 4월 심의회 후 결정
A36: 2026 | B36: 6 | C36: 주산지일관기계화 사업 | E36: 1개 작목반 | F36: 1 | G36: 1개소 | H36: 200,000,000 | I36: 도시농업과 | J36: 윤준호 | K36: 052-229-5432 | L36: 4월 심의회 후 결정
A37: 2026 | B37: 6 | C37: 웹가시성 확보 시스템 구축 | D37: 4323320501 | E37: 보안소프트웨어 | F37: 1 | G37: 식 | H37: 154,000,000 | I37: 정보화담당관 | J37: 김웅중 | K37: 052-229-3015
